Cogmind - Beta 13 @@@ ROGUE MODE // 2024.04.02 @ 00:56:34 Player: writers.room Result: Destroyed by AQ-ND9(R) with Subdweller Laser Performance ------------- Evolutions (0) 0 Regions Visited (2) 400 Robots Destroyed (22) 110 Value Destroyed (627) 627 Prototype IDs (2) 40 Alien Tech Used (0) 0 Bonus (-146) -146 TOTAL SCORE: 1031 Bonus ------- Friendly Fire -146 Cogmind --------- Core Integrity 0/250 Matter 180/300 Energy 99/100 System Corruption 0% Temperature Cool (6) Movement Rolling (80) Location -10/Subcaves Parts ------- > --- POWER (1) -------- (None) > --- PROPULSION (2) --- Wheel > --- UTILITY (2) ------ (None) > --- WEAPON (2) ------- (None) > --- INVENTORY (5) ---- Subdweller Power Source Subdweller Monowheel Subdweller Machine Gun Mining Laser Peak State ------------ > --- POWER ------------ Ion Engine > --- PROPULSION ------- Wheel Wheel > --- UTILITY ---------- Scrap Shield > --- WEAPON ----------- Grenade Launcher Mining Claw > --- INVENTORY -------- Structural Scanner Sensor Array Mining Laser Welding Torch [Rating: 9] Favorites ----------- Power Ion Engine Engine Ion Engine Propulsion Aluminum Leg Treads Light Treads Leg Aluminum Leg Wheel Wheel Utility Small Storage Unit Device Structural Scanner Storage Small Storage Unit Processor Signal Interpreter Protection Scrap Shield Weapon Mining Claw Energy Gun EM Pulse Gun Launcher Grenade Launcher Special Weapon Welding Torch Slashing Weapon Mining Claw Build | -11 -10 -10 ------- Run | Yrd Mat Sub Slots Evolved . | . . . Power . | . . . Propulsion . | . . . Utility . | . . . Weapon . | . . . Parts Attached 27 | 8 14 5 Power 4 | 1 2 1 Engine 4 | 1 2 1 Core . | . . . Reactor . | . . . Propulsion 9 | 4 3 2 Treads 1 | 1 . . Leg 3 | 2 1 . Wheel 5 | 1 2 2 Hover . | . . . Flight . | . . . Utility 6 | 1 4 1 Device 2 | . 2 . Storage 2 | 1 1 . Processor 1 | . 1 . Hackware . | . . . Protection 1 | . . 1 Artifact . | . . . Weapon 8 | 2 5 1 Energy Gun 3 | 2 1 . Energy Cannon . | . . . Ballistic Gun . | . . . Ballistic Cannon . | . . . Launcher 2 | . 1 1 Special Weapon 2 | . 2 . Impact Weapon . | . . . Slashing Weapon 1 | . 1 . Piercing Weapon . | . . . Special Melee Weapon . | . . . Unidentified Prototypes . | . . . Parts Lost 7 | . 1 6 Power 2 | . 1 1 Propulsion 1 | . . 1 Utility 1 | . . 1 Weapon 3 | . . 3 Highest Loss Streak 5 | . 1 5 To Critical Strikes . | . . . Average Slot Usage (%) 89 | . 93 67 Engine 13 | . 13 10 Leg 19 | . 23 . Wheel 7 | . 4 27 Device 6 | . 8 . Storage 10 | . 13 . Protection 1 | . . 8 Energy Gun 11 | . 14 . Launcher 3 | . 2 9 Slashing Weapon 10 | . 11 10 Naked Turns . | . . . Heaviest Build 28 | 11 16 28 Greatest Support 20 | 20 20 20 Greatest Overweight (x) 1 | 1 . 1 Average Overweight (x) . | . . . Largest Inventory Capacity 8 | 8 8 8 Average Capacity 7 | 7 7 5 Most Carried 8 | 8 8 7 Average Carried 6 | 5 6 3 Final Capacity 8 | 8 8 5 Final Carried 7 | 6 7 4 Class Distribution -------------------- 100% | Mutant Dominant Class ---------------- Mutant | -10/Materials Mutant | -10/Subcaves Resources | -11 -10 -10 ----------- Run | Yrd Mat Sub Matter Collected 455 | 220 195 40 Remotely . | . . . Salvage Created 688 | . 335 353 Parts 45 | . 26 19 Haulers Intercepted 1 | . 1 . Recyclers Shooed . | . . . Parts Field Recycled . | . . . Retrieved Matter . | . . . Parts Self-Destructed 6 | . . 6 Prevented . | . . . Kills | -11 -10 -10 ------- Run | Yrd Mat Sub Combat Hostiles Destroyed 19 | . 10 9 Melee 5 | . 4 1 Guns 5 | . 5 . AOE 9 | . 1 8 Classes Destroyed 6 | . 4 2 Hauler 1 | . 1 . Watcher 1 | . 1 . Swarmer 6 | . 6 . Grunt 4 | . 4 . Subdweller 9 | . . 9 Guerrilla 1 | . . 1 Best Kill Streak 8 | . 4 8 Combat Bots Only 8 | . 3 8 Max Kills in Single Turn 2 | . 2 2 Gunslinging . | . . . Exploded 2 | . 1 2 Melee 1 | . 1 1 Uniques/NPCs Destroyed . | . . . Combat | -11 -10 -10 -------- Run | Yrd Mat Sub Hostile Shots Fired 81 | . 38 43 Missed 21 | . 7 14 Damage Taken 1033 | . 310 723 Core 252 | . 52 200 Absorbed by Shields . | . . . Regen/Repaired (Parts) 7 | . 7 . Core Remaining (%) 100 | 100 . . Volleys Fired 35 | . 22 13 Largest 2 | . 2 1 Hottest 80 | . 80 40 Shots Fired 42 | . 29 13 Gun 21 | . 21 . Cannon . | . . . Launcher 13 | . . 13 Special 8 | . 8 . Kinetic 1 | . . 1 Thermal 15 | . 15 . Explosive 12 | . . 12 Electromagnetic 14 | . 14 . Robot Hit Streak 15 | . 8 15 Robot Miss Streak 3 | . 3 . Penetration Max . | . . . Secondary Targets . | . . . Shots Hit Robots 35 | . 24 11 Core Hits 35 | . 13 22 Critical Kills . | . . . Critical Parts Destroyed . | . . . Critical Strikes 1 | . 1 . Corrupt 1 | . 1 . Melee Attacks 49 | . 37 12 Impact . | . . . Slashing 49 | . 37 12 Piercing . | . . . Sneak Attacks 3 | . 2 1 Combat Hostiles . | . . . Follow-up Attacks . | . . . Damage Inflicted 2322 | . 526 1796 Guns 139 | . 139 . Cannons . | . . . Explosions 1737 | . 61 1676 Melee 446 | . 326 120 Ramming . | . . . Kinetic 341 | . . 341 Thermal 61 | . 61 . Explosive 1335 | . . 1335 Electromagnetic 139 | . 139 . Impact . | . . . Slashing 446 | . 326 120 Piercing . | . . . Highest Corruption . | . . . Average Corruption . | . . . Corruption Purged . | . . . Corruption Blocked . | . . . Overload Shots . | . . . Overflow Damage . | . . . Projectiles . | . . . Explosions . | . . . Melee . | . . . Knockbacks . | . . . Impact . | . . . Kinetic . | . . . Secondary . | . . . Self-Inflicted Damage 58 | . . 58 Shots 3 | . . 3 Rammed . | . . . Targets Rammed . | . . . Kicked . | . . . Crushed . | . . . Highest Temperature 108 | . 108 . Average Temperature 49 | . 49 . Received Heat Transfer 207 | . 78 129 Siege Activations . | . . . Robots Corrupted . | . . . Combat Hostiles . | . . . Parts Fried . | . . . Impact Corruptions . | . . . Robots Melted . | . . . Combat Hostiles . | . . . Parts Melted . | . . . Heat Transferred 100 | . 100 . Parts Sabotaged . | . . . Parts Stolen . | . . . Parts Stripped . | . . . Power Chain Reactions 1 | . 1 . Alert | -11 -10 -10 ------- Run | Yrd Mat Sub Peak Influence 227 | . 227 . Initial . | . . . Average 89 | . 97 . Maximum Alert Level 1 | . 1 . Low Security (%) 93 | 100 93 . Level 1 6 | . 6 . Level 2 . | . . . Level 3 . | . . . Level 4 . | . . . Level 5 . | . . . High Security . | . . . Max Security . | . . . Squads Dispatched 1 | . 1 . Investigation 1 | . 1 . Extermination . | . . . Reinforcement . | . . . Assault . | . . . Garrison . | . . . Intercept . | . . . Searches Triggered . | . . . Construction Impeded . | . . . Haulers Reinforced . | . . . Active Scanning Responses . | . . . Cargo Convoy Interrupts . | . . . Stealth | -11 -10 -10 --------- Run | Yrd Mat Sub Distress Signals 1 | . 1 . Communications Jammed . | . . . Distress Signals . | . . . Times Spotted 34 | . 19 15 Peak Tracking Total 8 | . 4 8 Tactical Retreats 2 | . 2 . Traps | -11 -10 -10 ------- Run | Yrd Mat Sub Traps Triggered . | . . . Indirectly . | . . . Trap Hack Attempts . | . . . Triggered . | . . . Disarmed . | . . . Reprogrammed . | . . . Reused . | . . . Traps Extracted . | . . . Installed . | . . . Triggered . | . . . Machines | -11 -10 -10 ---------- Run | Yrd Mat Sub Machines Disabled 5 | . 5 . Max in Single Turn 1 | . 1 . Machines Repaired . | . . . Machines Dismantled . | . . . Machines Sabotaged . | . . . Overloaded Fab Kills . | . . . Hacking | -11 -10 -10 --------- Run | Yrd Mat Sub Machines Accessed 8 | . 8 . Terminals 5 | . 5 . Fabricators . | . . . Repair Stations 1 | . 1 . Recycling Units 2 | . 2 . Scanalyzers . | . . . Garrison Access . | . . . Total Hacks 23 | . 23 . Successful 15 | . 15 . Failed 8 | . 8 . Catastrophic 1 | . 1 . Database Lockouts . | . . . Manual 15 | . 15 . Terminals 17 | . 17 . Fabricators . | . . . Repair Stations 3 | . 3 . Recycling Units 3 | . 3 . Scanalyzers . | . . . Garrison Access . | . . . Terminal Hacks 3 | . 3 . Prototype ID Bank 1 | . 1 . Locate Traps 1 | . 1 . Zone Layout 1 | . 1 . Fabricator Hacks . | . . . Repair Station Hacks 2 | . 2 . Scan Component 1 | . 1 . Repair 1 | . 1 . Recycling Unit Hacks 3 | . 3 . Report Inventory 2 | . 2 . Retrieve Matter 1 | . 1 . Scanalyzer . | . . . Garrison Access Hacks . | . . . Unauthorized Hacks 7 | . 7 . Terminals 7 | . 7 . Track 2 | . 2 . Botnet 5 | . 5 . Fabricators . | . . . Repair Stations . | . . . Recycling Units . | . . . Scanalyzers . | . . . Garrison Access . | . . . Data Cores Recovered . | . . . Used . | . . . Hacking Detections 5 | . 5 . Full Trace Events 2 | . 2 . Feedback Events . | . . . Feedback Blocked . | . . . Robot Schematics Acquired . | . . . Robots Built . | . . . Authchips . | . . . Time . | . . . Total Robot Build Rating . | . . . Part Schematics Acquired . | . . . Parts Built . | . . . Authchips . | . . . Time . | . . . Total Part Build Rating . | . . . Parts Repaired 1 | . 1 . Time 26 | . 26 . Parts Recycled . | . . . Recycled Matter . | . . . Retrieved Matter . | . . . Retrieved Components . | . . . Parts Scanalyzed . | . . . Part Schematics Acquired . | . . . Parts Damaged . | . . . Bothacking | -11 -10 -10 ------------ Run | Yrd Mat Sub Used RIF Installer . | . . . Robots Hacked . | . . . Non-combat . | . . . Combat . | . . . Robot Hacks Applied . | . . . Relay Couplers Released . | . . . Fabnet Peak Effective % . | . . . Robots Rewired . | . . . Allies Hacked . | . . . Hacks Repelled . | . . . Allies | -11 -10 -10 -------- Run | Yrd Mat Sub Total Allies . | . . . Largest Group . | . . . Highest-Rated Group . | . . . Highest-Rated Ally . | . . . Total Orders . | . . . Ally Attacks . | . . . Total Damage . | . . . Kills . | . . . Allies Corrupted . | . . . Allies Melted . | . . . Intel | -11 -10 -10 ------- Run | Yrd Mat Sub Robot Analysis Total . | . . . Derelict Logs Recovered . | . . . Drone Launches . | . . . Drone Recoveries . | . . . Exploration | -11 -10 -10 ------------- Run | Yrd Mat Sub Turns Passed 1340 | 95 1043 202 Spaces Moved 923 | 70 709 144 Core 34 | 34 . . Treads . | . . . Legs 619 | 36 583 . Wheels 270 | . 126 144 Hover . | . . . Flight . | . . . Fastest Speed 50 | 50 80 80 Average Speed 108 | 108 112 87 Slowest Speed 120 | 120 120 95 Overloaded Moves . | . . . Propulsion Burnouts . | . . . Robots Hopped . | . . . Cave-ins Triggered . | . . . Exploration Rate (%) 29 | 4 73 11 Regions Visited 2 Branch Regions 1 Pre-discovered Areas . | . . . Known Exits Taken 1 | . 1 . Unknown Exits Taken 1 | 1 . . Scrap Searched . | . . . Spaces Dug 9 | . 9 . Terrain Destroyed 71 | . 11 60 Melee 9 | . 9 . Projectile . | . . . AOE 62 | . 2 60 Terrain Rammed . | . . . Walls Destroyed . | . . . Machines Disabled . | . . . Actions | -11 -10 -10 --------- Run | Yrd Mat Sub Total 1127 | 87 853 187 Wait 34 | . 34 . Move 921 | 69 708 144 Hop . | . . . Pick Up 32 | 10 18 4 Fast Attach 7 | 2 4 1 Attach 14 | 4 6 4 Detach 2 | . 2 . Swap 6 | 2 4 . Drop 26 | . 18 8 Fire 35 | . 22 13 Melee 49 | . 37 12 Ram . | . . . Kick . | . . . Crush . | . . . Escape Stasis . | . . . Rewire . | . . . Trap . | . . . Miscellaneous 1 | . . 1 Route ------- -11/Scrapyard -10/Materials (discovered 4 exits: [*Mat x2] / [*Min] / *Sub) -10/Subcaves History --------- Turn | Location | Event 8 | -11/Scrapyard | Discovered new exit (range 15) 96 | -11/Scrapyard | Entered Materials 306 | -10/Materials | Build established: Mutant 473 | -10/Materials | Discovered new exit (range 16) 742 | -10/Materials | Discovered new exit (range 15) 892 | -10/Materials | Discovered new exit (range 6) 1024 | -10/Materials | Repaired Sml. Storage Unit? 1132 | -10/Materials | Discovered new exit (range 7) 1137 | -10/Materials | Identified exit to Subcaves 1139 | -10/Materials | Entered Subcaves 1263 | -10/Subcaves | Ambushed by Subdweller buried in earth 1272 | -10/Subcaves | Ambushed by swarm of Subdwellers 1273 | -10/Subcaves | Ambushed by Subdwellers from Twisted Machinery 1273 | -10/Subcaves | Ambushed by Subdwellers from Twisted Machinery 1273 | -10/Subcaves | Ambushed by Subdwellers from Twisted Machinery 1282 | -10/Subcaves | Core integrity fell below 50% 1287 | -10/Subcaves | Core integrity fell below 20% 1303 | -10/Subcaves | Destroyed 8 combat bots 1315 | -10/Subcaves | Lost 5 parts (1p1u3w) 1324 | -10/Subcaves | A swath of the cavern ceiling suddenly collapsed 1341 | -10/Subcaves | Destroyed by AQ-ND9(R) with Subdweller Laser Last Messages --------------- 01275_ HX-FTY(R) emerges from the Twisted Machinery. 01275_ 6W-6JY(R) destroyed. 01275_ Scrap Shield destroyed. 01277_ LN-87O(R) emerges from the Twisted Machinery. 01277_ AQ-ND9(R) emerges from the Twisted Machinery. 01277_ 7S-IA4(R) destroyed. 01278_ 1S-H5H(R): "ARGHSUB!" 01279_ Grenade Launcher destroyed. 01282_ Ion Engine destroyed. 01282_ HX-FTY(R) affixes Scrap Shield Fragment to Scrap Shield. 01282_ LN-87O(R) destroyed. 01282_ HX-FTY(R) destroyed. 01283_ XQ-IST(R) affixes Scrap Shield Fragment to Scrap Shield. 01283_ Mining Claw destroyed. 01284_ Sub. Shrapnel Launcher destroyed. 01288_ XQ-IST(R) affixes Scrap Shield Fragment to Scrap Shield. 01305_ Subatomizers dissect the Wheel. A swath of the cavern ceiling suddenly collapses. 01333_ Wheel destroyed. 01336_ 1S-H5H(R) destroyed. Map ----- +----------------------------------------------------+ | ?????????????????????????# ## "#???????? | | ??????????????????????????# ## " ! "##???????? | | ??????????????????????????# "" %%" #???????? | | ??????????????????????????# " " | ""# #?????? | | ??????????????????????????# "# #?????? | | ??????????????????????????######## "" #?????? | | ????????????????????????????????# ## #?????? | | ????????????????????????????????# " "### ##????? | | ????????????????????????????????## #?? #????? | | ???????????????????????????????## #### ###???? | | ???????????????????????????????# #???? | | ???????????????????????????????# #? | | ???????????????????????????????## # # # | | ??????????????????????????????### ###? | | ??????????????????????????????# #???? | | ??????????????????????????????#!= ##???? ##? | | ??????????????????????????????##!= ##?????######?? | | ???????????????????????????????# !######?????????? | | ??????????????????????????????### # ####?????? | | ???????????????????#?????????## & ####?? | | ??????????????????#" "#???### !% ### "## | | ??????????? ### ? " ### # ### ##"# | | ??????????? RR ## #"# " | | ?????????? ?#### # ""#""# | | ?????????????# ### """# | | ?????????????# @ #### # ##"" | | ?????????????????# ##??## ### "" | | ?????????????????## #????# ### # | | ??????????????????# #???## ## #### | | ??????????????????## #### #????## ### ##??? | | ???????????????????# #???####??????###?## ##???? | | ???????????????????####???????????????????###????? | | ?????????????????????????????????????????????????? | | ?????????????????????????????????????????????????? | | ?????????????????????????????????????????????????? | | ?????????????????????????????????????????????????? | | ?????????????????????????????????????????????????? | | ?????????????????????????????????????????????????? | | ?????????????????????????????????????????????????? | | ?????????????????????????????????????????????????? | | ?????????????????????????????????????????????????? | | ?????????????????????????????????????????????????? | | ?????????????????????????????????????????????????? | | ?????????????????????????????????????????????????? | | ?????????????????????????????????????????????????? | | ?????????????????????????????????????????????????? | | | | | | | | | +----------------------------------------------------+ Best States ------------- Heat Dissipation 35 Energy Generation 10 Energy Capacity 250 Matter Stores 300 Matter Capacity 300 Sight Range 16 Terrain Scan Density 10 Armor Coverage 800 Evasion (%) 55 Item Schematics ----------------- None Robot Schematics ------------------ None Fabricated ------------ Nothing Alien Tech Used ----------------- None Achievements -------------- None Challenges ------------ None Game ------ Seed SpectralProtonMicrothruster Manual? 0 Play Time 00:22:22 Cumulative 23.2 hours Start 2024.04.02 @ 00:36:49 End 2024.04.02 @ 00:56:34 Sessions 1 Manual Loads 0 Difficulty Rogue Special Mode None Game No. 58 Rogue 18 Adventurer 14 Explorer 26 Win Type - Total 0 Types 0/0/0/0/0/0/0/0/0 Lore% 16 Gallery% 26 Achievement% 23 Wizard Run 0 Options --------- Layout 0 ASCII 0 Keyboard 0 Movement Mouse Keybinds 0 Fullscreen 1 Font 18/SmallcapsGlow Map View 76x50 Zoom Use 0% Tactical HUD 1 Map Filters NONE Filters NONE Steam 1 RUN: 8e992196-109e-40cf-84e9-94a3d6002bce